[Event "CZE-ch Youth G10-G12-G14 2022"]
[Site "Luhacovice"]
[Date "2022.03.15"]
[Round "5.25"]
[White "Zezulova Sara"]
[Black "Nova Anezka"]
[Result "0-1"]
[ECO "C55"]
[WhiteElo "1000"]
[BlackElo "1111"]
[Annotator "NA"]
[PlyCount "50"]
[EventDate "2022.03.12"]
[EventType "swiss"]
[EventCountry "CZE"]
[SourceTitle "playchess.com"]
[Source "ChessBase"]
[SourceQuality "1"]
[TimeControl "40/5400+30:1800+30"]

1. e4 {[%emt 0:00:05]} e5 {[%emt 0:00:06]} 2. Nf3 {[%emt 0:00:10]} Nc6 {[%emt 0:00:11]} 3. Bc4 {[%emt 0:00:16]} Nf6 {[%emt 0:00:21]} 4. c3 {[%emt 0:00:43]} d5 {[%emt 0:00:40]} 5. exd5 {[%emt 0:01:28]} Nxd5 {[%emt 0:00:20]} 6. Bxd5 {[%emt 0:00:33]} Qxd5 {[%emt 0:00:11]} 7. O-O {[%emt 0:00:29]} Bg4 {[%emt 0:00:19]} 8. h3 {[%emt 0:01:00]} e4 {[%emt 0:01:35]} 9. hxg4 {[%emt 0:01:23]} exf3 {[%emt 0:00:18]} 10. Re1+ {[%emt 0:01:08]} Be7 {[%emt 0:00:13]} 11. d3 {[%emt 0:00:44]} fxg2 {[%emt 0:00:33]} 12. Bf4 {[%emt 0:01:14]} O-O-O {[%emt 0:00:46]} 13. Na3 {[%emt 0:01:26]} Bh4 {[%emt 0:01:00]} 14. Qd2 {[%emt 0:01:01]} Qf3 {[%emt 0:00:42]} 15. Qe3 {[%emt 0:02:10]} Rxd3 {[%emt 0:00:36]} 16. Qxf3 {[%emt 0:01:20]} Rxf3 {[%emt 0:00:16]} 17. Kxg2 {[%emt 0:01:21]} Rxf4 {[%emt 0:00:21]} 18. Rf1 {[%emt 0:00:35]} Rxg4+ {[%emt 0:00:57]} 19. Kh3 {[%emt 0:00:38]} Rf4 {[%emt 0:02:21]} 20. Kg2 {[%emt 0:00:44]} Re8 {[%emt 0:01:34]} 21. Nc4 {[%emt 0:02:34]} Rxc4 {[%emt 0:01:27]} 22. f3 {[%emt 0:00:28]} Re2+ {[%emt 0:01:27]} 23. Kh3 {[%emt 0:00:36]} Bf6 {[%emt 0:02:16]} 24. Rad1 {[%emt 0:01:03]} Be5 {[%emt 0:01:03]} 25. Rc1 {[%emt 0:01:05]} Rh2# {[%emt 0:00:10]} 0-1

[Event "CZE-ch Youth G10-G12-G14 2022"]
[Site "Luhacovice"]
[Date "2022.03.15"]
[Round "5.26"]
[White "Rezacova Julie"]
[Black "Spetlova Stella"]
[Result "1-0"]
[ECO "B50"]
[WhiteElo "1063"]
[BlackElo "1000"]
[Annotator "NA"]
[PlyCount "75"]
[EventDate "2022.03.12"]
[EventType "swiss"]
[EventCountry "CZE"]
[SourceTitle "playchess.com"]
[Source "ChessBase"]
[SourceQuality "1"]
[TimeControl "40/5400+30:1800+30"]

1. e4 {[%emt 0:00:04]} c5 {[%emt 0:00:20]} 2. Nf3 {[%emt 0:00:31]} Nf6 {[%emt 0:00:36]} 3. Nc3 {[%emt 0:00:19]} Nc6 {[%emt 0:01:00]} 4. Be2 {[%emt 0:00:23]} d6 {[%emt 0:02:03]} 5. d3 {[%emt 0:00:17]} Be6 {[%emt 0:02:45]} 6. O-O {[%emt 0:00:34]} Qd7 {[%emt 0:00:47]} 7. Bd2 {[%emt 0:00:19]} O-O-O {[%emt 0:01:18]} 8. Be3 {[%emt 0:00:45]} Ng4 {[%emt 0:06:03]} 9. Bd2 {[%emt 0:01:21]} g6 {[%emt 0:04:32]} 10. a3 {[%emt 0:00:51]} Bg7 {[%emt 0:01:02]} 11. Rb1 {[%emt 0:00:26]} Nce5 {[%emt 0:03:31]} 12. b4 {[%emt 0:01:16]} Nxf3+ {[%emt 0:01:32]} 13. Bxf3 {[%emt 0:00:14]} Be5 {[%emt 0:00:28]} 14. g3 {[%emt 0:00:38]} h5 {[%emt 0:00:56]} 15. bxc5 {[%emt 0:00:17]} dxc5 {[%emt 0:03:10]} 16. Nd5 {[%emt 0:00:20]} h4 {[%emt 0:02:53]} 17. Bf4 {[%emt 0:00:16]} Bxf4 {[%emt 0:01:03]} 18. Nxf4 {[%emt 0:00:46]} Nf6 {[%emt 0:00:28]} 19. Nxe6 {[%emt 0:00:59]} fxe6 {[%emt 0:00:58]} 20. e5 {[%emt 0:00:31]} Nd5 {[%emt 0:00:30]} 21. Qd2 {[%emt 0:01:15]} hxg3 {[%emt 0:00:26]} 22. fxg3 {[%emt 0:00:22]} Rh7 {[%emt 0:01:12]} 23. c4 {[%emt 0:00:10]} Nb6 {[%emt 0:00:16]} 24. a4 {[%emt 0:00:44]} Qxa4 {[%emt 0:05:45]} 25. Be4 {[%emt 0:00:22]} Qe8 {[%emt 0:00:38]} 26. Qg5 {[%emt 0:01:27]} Rh5 {[%emt 0:02:33]} 27. Qg4 {[%emt 0:00:22]} Na4 {[%emt 0:00:39]} 28. Qxe6+ {[%emt 0:00:27]} Qd7 {[%emt 0:00:17]} 29. Bxb7+ {[%emt 0:00:29]} Kc7 {[%emt 0:00:27]} 30. Qa6 {[%emt 0:01:38]} Qd4+ {[%emt 0:01:07]} 31. Kh1 {[%emt 0:01:26]} Rxh2+ {[%emt 0:00:24]} 32. Kxh2 {[%emt 0:00:11]} Rh8+ {[%emt 0:00:24]} 33. Kg2 {[%emt 0:00:11]} Qd7 {[%emt 0:01:33]} 34. Be4 {[%emt 0:01:27]} Nc3 {[%emt 0:00:38]} 35. Rb7+ {[%emt 0:00:32]} Kd8 {[%emt 0:00:08]} 36. Rxd7+ {[%emt 0:00:22]} Kxd7 {[%emt 0:00:13]} 37. Qxa7+ {[%emt 0:00:16]} Ke6 {[%emt 0:00:21]} 38. Qxc5 {[%emt 0:00:44]} 1-0

[Event "CZE-ch Youth G10-G12-G14 2022"]
[Site "Luhacovice"]
[Date "2022.03.15"]
[Round "5.27"]
[White "Archlebova Iva"]
[Black "Martinkovicova Nela"]
[Result "1/2-1/2"]
[ECO "C42"]
[WhiteElo "1028"]
[BlackElo "1032"]
[Annotator "NA"]
[PlyCount "61"]
[EventDate "2022.03.12"]
[EventType "swiss"]
[EventCountry "CZE"]
[SourceTitle "playchess.com"]
[Source "ChessBase"]
[SourceQuality "1"]
[TimeControl "40/5400+30:1800+30"]

1. e4 {[%emt 0:00:05]} e5 {[%emt 0:00:09]} 2. Nf3 {[%emt 0:00:28]} Nf6 {[%emt 0:00:37]} 3. Nc3 {[%emt 0:01:06]} Bb4 {[%emt 0:01:38]} 4. Nxe5 {[%emt 0:01:10]} O-O {[%emt 0:02:07]} 5. Bc4 {[%emt 0:00:25]} Qe7 {[%emt 0:10:15]} 6. Nf3 {[%emt 0:16:20]} Bxc3 {[%emt 0:03:09]} 7. dxc3 {[%emt 0:02:25]} Qxe4+ {[%emt 0:01:10]} 8. Be2 {[%emt 0:02:23]} d5 {[%emt 0:03:25]} 9. O-O {[%emt 0:02:06]} Bf5 {[%emt 0:02:14]} 10. Bd3 {[%emt 0:02:28]} Qe6 {[%emt 0:03:37]} 11. Re1 {[%emt 0:02:15]} Qd7 {[%emt 0:01:31]} 12. Bf4 {[%emt 0:03:10]} Nc6 {[%emt 0:02:09]} 13. Bb5 {[%emt 0:01:54]} Rae8 {[%emt 0:03:30]} 14. Ne5 {[%emt 0:06:48]} Qe6 {[%emt 0:05:35]} 15. Nf3 {[%emt 0:04:24]} Qd7 {[%emt 0:02:26]} 16. h3 {[%emt 0:03:11]} Rxe1+ {[%emt 0:01:45]} 17. Qxe1 {[%emt 0:01:46]} Bxc2 {[%emt 0:01:20]} 18. Qe2 {[%emt 0:02:38]} Bf5 {[%emt 0:01:53]} 19. Rd1 {[%emt 0:06:05]} Re8 {[%emt 0:03:18]} 20. Qd2 {[%emt 0:03:45]} h6 {[%emt 0:02:21]} 21. Ne5 {[%emt 0:02:37]} Qe6 {[%emt 0:04:43]} 22. Re1 {[%emt 0:03:50]} Ne4 {[%emt 0:08:18]} 23. Qe2 {[%emt 0:03:30]} Re7 {[%emt 0:04:06]} 24. Bxc6 {[%emt 0:02:06]} bxc6 {[%emt 0:01:43]} 25. c4 {[%emt 0:01:27]} g5 {[%emt 0:03:11]} 26. Bh2 {[%emt 0:03:02]} f6 {[%emt 0:03:22]} 27. Ng4 {[%emt 0:02:14]} Bxg4 {[%emt 0:01:02]} 28. Qxg4 {[%emt 0:01:25]} Kf7 {[%emt 0:02:36]} 29. Qh5+ {[%emt 0:00:54]} Kg7 {[%emt 0:00:52]} 30. cxd5 {[%emt 0:01:00]} Qd7 {[%emt 0:06:30]} 31. f3 {[%emt 0:01:30]} 1/2-1/2

[Event "CZE-ch Youth G10-G12-G14 2022"]
[Site "Luhacovice"]
[Date "2022.03.15"]
[Round "5.28"]
[White "Maresova Denisa"]
[Black "Kubickova Linda"]
[Result "1-0"]
[ECO "A25"]
[WhiteElo "1103"]
[BlackElo "1000"]
[Annotator "NA"]
[PlyCount "41"]
[EventDate "2022.03.12"]
[EventType "swiss"]
[EventCountry "CZE"]
[SourceTitle "playchess.com"]
[Source "ChessBase"]
[SourceQuality "1"]
[TimeControl "40/5400+30:1800+30"]

1. c4 {[%emt 0:00:04]} e5 {[%emt 0:00:19]} 2. Nc3 {[%emt 0:00:14]} Nc6 {[%emt 0:00:39]} 3. g3 {[%emt 0:00:12]} Nf6 {[%emt 0:01:04]} 4. Bg2 {[%emt 0:00:53]} Bc5 {[%emt 0:01:01]} 5. d3 {[%emt 0:03:24]} Ng4 {[%emt 0:02:06]} 6. e3 {[%emt 0:11:19]} d6 {[%emt 0:02:25]} 7. Nf3 {[%emt 0:04:17]} O-O {[%emt 0:01:57]} 8. O-O {[%emt 0:07:41]} Bb4 {[%emt 0:08:13]} 9. d4 {[%emt 0:07:14]} exd4 {[%emt 0:01:31]} 10. Nxd4 {[%emt 0:05:36]} Nxd4 {[%emt 0:01:59]} 11. exd4 {[%emt 0:03:15]} Re8 {[%emt 0:01:39]} 12. Bf4 {[%emt 0:02:02]} Bxc3 {[%emt 0:04:37]} 13. bxc3 {[%emt 0:01:00]} c6 {[%emt 0:03:10]} 14. Rb1 {[%emt 0:06:28]} Rb8 {[%emt 0:02:26]} 15. Bxc6 {[%emt 0:02:37]} Re7 {[%emt 0:02:51]} 16. Bg2 {[%emt 0:02:11]} Bf5 {[%emt 0:02:03]} 17. Rc1 {[%emt 0:03:22]} Qc8 {[%emt 0:02:28]} 18. Bxd6 {[%emt 0:01:38]} Re8 {[%emt 0:05:35]} 19. Bxb8 {[%emt 0:01:54]} Qxb8 {[%emt 0:00:26]} 20. Qa4 {[%emt 0:03:38]} h6 {[%emt 0:04:14]} 21. Rfe1 {[%emt 0:02:25]} 1-0

[Event "CZE-ch Youth G10-G12-G14 2022"]
[Site "Luhacovice"]
[Date "2022.03.15"]
[Round "5.29"]
[White "Hetfleischova, Elen"]
[Black "Rybackova, Lucie"]
[Result "0-1"]
[ECO "B33"]
[WhiteElo "1363"]
[BlackElo "1612"]
[Annotator "NA"]
[PlyCount "66"]
[EventDate "2022.03.12"]
[EventType "swiss"]
[EventCountry "CZE"]
[SourceTitle "playchess.com"]
[Source "ChessBase"]
[SourceQuality "1"]
[TimeControl "40/5400+30:1800+30"]

1. e4 {[%emt 0:00:08]} c5 {[%emt 0:00:35]} 2. Nf3 {[%emt 0:00:09]} Nc6 {[%emt 0:00:28]} 3. d4 {[%emt 0:00:11]} cxd4 {[%emt 0:00:26]} 4. Nxd4 {[%emt 0:00:09]} Nf6 {[%emt 0:00:58]} 5. Nc3 {[%emt 0:00:21]} e5 {[%emt 0:00:22]} 6. Nxc6 {[%emt 0:01:04]} bxc6 {[%emt 0:00:38]} 7. Bc4 {[%emt 0:01:58]} Bb4 {[%emt 0:01:23]} 8. Qd3 {[%emt 0:08:35]} d5 {[%emt 0:26:13]} 9. exd5 {[%emt 0:27:19]} cxd5 {[%emt 0:02:43]} 10. Bb5+ {[%emt 0:00:13]} Bd7 {[%emt 0:00:31]} 11. O-O {[%emt 0:02:16]} Bxc3 {[%emt 0:02:45]} 12. Bxd7+ {[%emt 0:00:38]} Nxd7 {[%emt 0:02:15]} 13. Qxc3 {[%emt 0:04:41]} O-O {[%emt 0:01:08]} 14. Qg3 {[%emt 0:01:50]} Qf6 {[%emt 0:04:29]} 15. Qg5 {[%emt 0:04:40]} Qxg5 {[%emt 0:02:11]} 16. Bxg5 {[%emt 0:00:05]} f6 {[%emt 0:00:58]} 17. Be3 {[%emt 0:00:21]} d4 {[%emt 0:01:35]} 18. Bd2 {[%emt 0:00:16]} Rab8 {[%emt 0:01:09]} 19. b4 {[%emt 0:01:41]} Rfc8 {[%emt 0:01:56]} 20. Rfc1 {[%emt 0:00:41]} Nb6 {[%emt 0:02:20]} 21. a4 {[%emt 0:01:24]} Nd5 {[%emt 0:00:35]} 22. Rab1 {[%emt 0:00:56]} Rc4 {[%emt 0:00:31]} 23. Rb3 {[%emt 0:03:54]} Nxb4 {[%emt 0:01:47]} 24. Rcb1 {[%emt 0:00:31]} a5 {[%emt 0:00:11]} 25. g3 {[%emt 0:02:51]} Rxc2 {[%emt 0:09:00]} 26. R3b2 {[%emt 0:06:51]} Rxb2 {[%emt 0:00:41]} 27. Rxb2 {[%emt 0:00:09]} Kf7 {[%emt 0:00:47]} 28. Kf1 {[%emt 0:01:58]} Ke6 {[%emt 0:00:29]} 29. Ke2 {[%emt 0:03:56]} Kd5 {[%emt 0:00:37]} 30. f3 {[%emt 0:01:04]} f5 {[%emt 0:01:08]} 31. h3 {[%emt 0:02:01]} e4 {[%emt 0:00:58]} 32. f4 {[%emt 0:02:16]} e3 {[%emt 0:01:01]} 33. Bxe3 {[%emt 0:01:06]} Re8 {[%emt 0:00:11]} 0-1

[Event "CZE-ch Youth G10-G12-G14 2022"]
[Site "Luhacovice"]
[Date "2022.03.15"]
[Round "5.30"]
[White "Zadrapova, Amalie"]
[Black "Dobsa, Emma"]
[Result "0-1"]
[ECO "C67"]
[WhiteElo "1582"]
[BlackElo "1425"]
[Annotator "NA"]
[PlyCount "73"]
[EventDate "2022.03.12"]
[EventType "swiss"]
[EventCountry "CZE"]
[SourceTitle "playchess.com"]
[Source "ChessBase"]
[SourceQuality "1"]
[TimeControl "40/5400+30:1800+30"]

1. e4 {[%emt 0:00:04]} e5 {[%emt 0:00:16]} 2. Nf3 {[%emt 0:00:07]} Nc6 {[%emt 0:00:13]} 3. Bb5 {[%emt 0:00:06]} Nf6 {[%emt 0:16:22]} 4. O-O {[%emt 0:02:04]} Nxe4 {[%emt 0:00:30]} 5. d4 {[%emt 0:00:30]} Nd6 {[%emt 0:00:30]} 6. Bxc6 {[%emt 0:00:30]} dxc6 {[%emt 0:00:30]} 7. dxe5 {[%emt 0:00:30]} Nf5 {[%emt 0:00:30]} 8. Qxd8+ {[%emt 0:00:30]} Kxd8 {[%emt 0:00:30]} 9. Nc3 {[%emt 0:00:30]} Bd7 {[%emt 0:00:30]} 10. Bf4 {[%emt 0:00:30]} Kc8 {[%emt 0:00:30]} 11. Ng5 {[%emt 0:08:49]} Be8 {[%emt 0:17:55]} 12. g4 {[%emt 0:32:26]} Nd4 {[%emt 0:12:27]} 13. Rad1 {[%emt 0:16:51]} c5 {[%emt 0:14:48]} 14. Kg2 {[%emt 0:00:30]} h6 {[%emt 0:00:30]} 15. Nge4 {[%emt 0:00:30]} Nxc2 {[%emt 0:00:30]} 16. Rd2 {[%emt 0:00:30]} Nd4 {[%emt 0:00:30]} 17. Rfd1 {[%emt 0:00:30]} Bc6 {[%emt 0:00:30]} 18. f3 {[%emt 0:00:30]} Ne6 {[%emt 0:00:30]} 19. Bg3 {[%emt 0:00:30]} Be7 {[%emt 0:00:30]} 20. Nd5 {[%emt 0:00:30]} Bxd5 {[%emt 0:00:30]} 21. Rxd5 {[%emt 0:00:30]} b6 {[%emt 0:00:30]} 22. R5d2 {[%emt 0:00:30]} Kb7 {[%emt 0:00:30]} 23. Nc3 {[%emt 0:00:30]} Bg5 {[%emt 0:00:30]} 24. Rd7 {[%emt 0:00:30]} Rhf8 {[%emt 0:02:04]} 25. h4 {[%emt 0:01:50]} Bf4 {[%emt 0:01:54]} 26. Nd5 {[%emt 0:06:11]} Bxg3 {[%emt 0:05:17]} 27. Kxg3 {[%emt 0:00:07]} Rad8 {[%emt 0:03:38]} 28. Ne3 {[%emt 0:08:13]} Rxd7 {[%emt 0:04:27]} 29. Rxd7 {[%emt 0:00:09]} Kc8 {[%emt 0:01:58]} 30. Rd1 {[%emt 0:00:52]} Nd4 {[%emt 0:02:45]} 31. f4 {[%emt 0:02:24]} Re8 {[%emt 0:00:23]} 32. h5 {[%emt 0:02:25]} f6 {[%emt 0:01:08]} 33. e6 {[%emt 0:06:46]} Rxe6 {[%emt 0:00:51]} 34. Kf2 {[%emt 0:00:07]} Re4 {[%emt 0:00:31]} 35. Rd2 {[%emt 0:02:45]} Rxf4+ {[%emt 0:02:23]} 36. Kg2 {[%emt 0:00:08]} Nf3 {[%emt 0:00:46]} 37. Kg3 {[%emt 0:00:43]} 0-1

[Event "CZE-ch Youth G10-G12-G14 2022"]
[Site "Luhacovice"]
[Date "2022.03.15"]
[Round "5.31"]
[White "Barteckova, Denisa"]
[Black "Dudkova, Josefina"]
[Result "1/2-1/2"]
[ECO "B76"]
[WhiteElo "1323"]
[BlackElo "1545"]
[Annotator "NA"]
[PlyCount "63"]
[EventDate "2022.03.12"]
[EventType "swiss"]
[EventCountry "CZE"]
[SourceTitle "playchess.com"]
[Source "ChessBase"]
[SourceQuality "1"]
[TimeControl "40/5400+30:1800+30"]

1. e4 {[%emt 0:00:03]} c5 {[%emt 0:00:07]} 2. Nf3 {[%emt 0:00:06]} d6 {[%emt 0:00:06]} 3. d4 {[%emt 0:00:05]} cxd4 {[%emt 0:00:07]} 4. Nxd4 {[%emt 0:00:08]} Nf6 {[%emt 0:00:08]} 5. Nc3 {[%emt 0:00:00]} g6 {[%emt 0:00:11]} 6. Be3 {[%emt 0:00:00]} Bg7 {[%emt 0:00:22]} 7. f3 {[%emt 0:00:00]} O-O {[%emt 0:00:09]} 8. Qd2 {[%emt 0:00:00]} Nc6 {[%emt 0:00:00]} 9. O-O-O {[%emt 0:00:19]} Nxd4 {[%emt 0:21:26]} 10. Bxd4 {[%emt 0:00:31]} Be6 {[%emt 0:00:30]} 11. g4 {[%emt 0:00:30]} Qa5 {[%emt 0:00:30]} 12. a3 {[%emt 0:00:30]} Rfc8 {[%emt 0:00:30]} 13. h4 {[%emt 0:00:30]} Bc4 {[%emt 0:00:30]} 14. g5 {[%emt 0:03:38]} Nh5 {[%emt 0:03:41]} 15. Bxc4 {[%emt 0:02:36]} Rxc4 {[%emt 0:00:31]} 16. Bxg7 {[%emt 0:00:31]} Kxg7 {[%emt 0:06:08]} 17. Nd5 {[%emt 0:01:29]} Qxd2+ {[%emt 0:02:28]} 18. Rxd2 {[%emt 0:00:12]} e6 {[%emt 0:01:59]} 19. Ne3 {[%emt 0:00:09]} Rc6 {[%emt 0:00:24]} 20. Rhd1 {[%emt 0:00:40]} Rd8 {[%emt 0:01:22]} 21. Ng4 {[%emt 0:01:04]} f6 {[%emt 0:12:13]} 22. gxf6+ {[%emt 0:00:34]} Nxf6 {[%emt 0:00:59]} 23. Ne5 {[%emt 0:00:35]} Ra6 {[%emt 0:01:37]} 24. Nc4 {[%emt 0:00:42]} d5 {[%emt 0:01:31]} 25. Kb1 {[%emt 0:01:51]} b5 {[%emt 0:17:32]} 26. Ne3 {[%emt 0:00:17]} Rc6 {[%emt 0:03:09]} 27. c3 {[%emt 0:09:34]} Rc7 {[%emt 0:02:35]} 28. Ng4 {[%emt 0:06:11]} Rcd7 {[%emt 0:05:29]} 29. Ne5 {[%emt 0:03:25]} Rd6 {[%emt 0:00:48]} 30. c4 {[%emt 0:01:40]} bxc4 {[%emt 0:02:00]} 31. Nxc4 {[%emt 0:00:16]} R6d7 {[%emt 0:04:49]} 32. Ne5 {[%emt 0:02:25]} 1/2-1/2

[Event "CZE-ch Youth G10-G12-G14 2022"]
[Site "Luhacovice"]
[Date "2022.03.15"]
[Round "5.32"]
[White "Mikesova, Lenka"]
[Black "Filipova, Vanesa"]
[Result "1/2-1/2"]
[ECO "C01"]
[WhiteElo "1364"]
[BlackElo "1146"]
[Annotator "NA"]
[PlyCount "49"]
[EventDate "2022.03.12"]
[EventType "swiss"]
[EventCountry "CZE"]
[SourceTitle "playchess.com"]
[Source "ChessBase"]
[SourceQuality "1"]
[TimeControl "40/5400+30:1800+30"]

1. e4 {[%emt 0:00:03]} e6 {[%emt 0:00:16]} 2. d4 {[%emt 0:00:15]} d5 {[%emt 0:00:20]} 3. Bd3 {[%emt 0:00:41]} c5 {[%emt 0:00:47]} 4. exd5 {[%emt 0:02:07]} Qxd5 {[%emt 0:05:57]} 5. Nc3 {[%emt 0:04:57]} Qxd4 {[%emt 0:04:53]} 6. Be3 {[%emt 0:02:59]} Qd8 {[%emt 0:00:46]} 7. Nf3 {[%emt 0:02:06]} Nf6 {[%emt 0:00:43]} 8. O-O {[%emt 0:03:46]} Be7 {[%emt 0:00:35]} 9. Qe2 {[%emt 0:01:46]} O-O {[%emt 0:02:07]} 10. Rad1 {[%emt 0:02:08]} Bd7 {[%emt 0:02:47]} 11. Ne4 {[%emt 0:03:39]} Qc7 {[%emt 0:02:56]} 12. Bxc5 {[%emt 0:15:42]} Re8 {[%emt 0:09:48]} 13. Bxe7 {[%emt 0:00:28]} Nxe4 {[%emt 0:02:56]} 14. Qxe4 {[%emt 0:00:55]} f5 {[%emt 0:03:37]} 15. Qh4 {[%emt 0:01:29]} Nc6 {[%emt 0:00:57]} 16. Ba3 {[%emt 0:03:41]} Ne5 {[%emt 0:03:09]} 17. Nxe5 {[%emt 0:02:46]} Qxe5 {[%emt 0:00:30]} 18. Rfe1 {[%emt 0:01:43]} Qc7 {[%emt 0:01:07]} 19. g4 {[%emt 0:06:00]} g6 {[%emt 0:01:36]} 20. gxf5 {[%emt 0:00:33]} exf5 {[%emt 0:00:55]} 21. Bc4+ {[%emt 0:01:39]} Kg7 {[%emt 0:01:00]} 22. Re7+ {[%emt 0:03:22]} Rxe7 {[%emt 0:00:56]} 23. Bxe7 {[%emt 0:01:09]} Bc6 {[%emt 0:02:16]} 24. Qf6+ {[%emt 0:01:25]} Kh6 {[%emt 0:00:10]} 25. Bd6 {[%emt 0:01:21]} 1/2-1/2

[Event "CZE-ch Youth G10-G12-G14 2022"]
[Site "Luhacovice"]
[Date "2022.03.15"]
[Round "5.34"]
[White "Veverkova, Dorota"]
[Black "Sikorova, Jana"]
[Result "0-1"]
[ECO "B23"]
[WhiteElo "1320"]
[BlackElo "1427"]
[Annotator "NA"]
[PlyCount "64"]
[EventDate "2022.03.12"]
[EventType "swiss"]
[EventCountry "CZE"]
[SourceTitle "playchess.com"]
[Source "ChessBase"]
[SourceQuality "1"]
[TimeControl "40/5400+30:1800+30"]

1. e4 {[%emt 0:00:03]} c5 {[%emt 0:00:05]} 2. Nc3 {[%emt 0:00:23]} e6 {[%emt 0:00:22]} 3. f4 {[%emt 0:00:50]} a6 {[%emt 0:01:09]} 4. Nf3 {[%emt 0:00:49]} Qc7 {[%emt 0:01:22]} 5. d3 {[%emt 0:02:36]} b5 {[%emt 0:01:10]} 6. Be3 {[%emt 0:03:15]} Bb7 {[%emt 0:00:39]} 7. Ne2 {[%emt 0:04:12]} Nf6 {[%emt 0:05:22]} 8. Ng3 {[%emt 0:02:35]} d6 {[%emt 0:01:30]} 9. Be2 {[%emt 0:01:15]} Nbd7 {[%emt 0:04:43]} 10. Qd2 {[%emt 0:02:32]} Rc8 {[%emt 0:02:28]} 11. b3 {[%emt 0:01:29]} Be7 {[%emt 0:01:14]} 12. Rd1 {[%emt 0:03:52]} O-O {[%emt 0:02:48]} 13. O-O {[%emt 0:00:57]} Ng4 {[%emt 0:02:38]} 14. f5 {[%emt 0:05:02]} Nxe3 {[%emt 0:03:18]} 15. Qxe3 {[%emt 0:00:25]} exf5 {[%emt 0:02:42]} 16. Nxf5 {[%emt 0:00:55]} Bf6 {[%emt 0:02:24]} 17. N3h4 {[%emt 0:03:16]} g6 {[%emt 0:11:05]} 18. Rf3 {[%emt 0:10:39]} gxf5 {[%emt 0:09:47]} 19. Qh6 {[%emt 0:02:22]} Bxh4 {[%emt 0:03:53]} 20. Qxh4 {[%emt 0:01:55]} f6 {[%emt 0:02:23]} 21. c3 {[%emt 0:02:07]} fxe4 {[%emt 0:02:16]} 22. Rg3+ {[%emt 0:02:59]} Kh8 {[%emt 0:00:32]} 23. Rh3 {[%emt 0:01:20]} Ne5 {[%emt 0:02:12]} 24. d4 {[%emt 0:00:31]} Ng6 {[%emt 0:00:47]} 25. Qh6 {[%emt 0:00:42]} Qg7 {[%emt 0:01:52]} 26. Bg4 {[%emt 0:01:10]} Qxh6 {[%emt 0:02:03]} 27. Rxh6 {[%emt 0:00:18]} f5 {[%emt 0:00:52]} 28. Bh5 {[%emt 0:00:22]} Kg7 {[%emt 0:00:41]} 29. Bxg6 {[%emt 0:00:32]} Kxh6 {[%emt 0:00:13]} 30. Bxf5 {[%emt 0:00:39]} Rxf5 {[%emt 0:00:33]} 31. dxc5 {[%emt 0:00:44]} Rfxc5 {[%emt 0:01:11]} 32. Rxd6+ {[%emt 0:02:07]} Kh5 {[%emt 0:00:13]} 0-1

[Event "CZE-ch Youth G10-G12-G14 2022"]
[Site "Luhacovice"]
[Date "2022.03.15"]
[Round "5.35"]
[White "Cinkova, Vicky"]
[Black "Foldynova Julie"]
[Result "1-0"]
[ECO "C42"]
[WhiteElo "1317"]
[BlackElo "1000"]
[Annotator "NA"]
[PlyCount "60"]
[EventDate "2022.03.12"]
[EventType "swiss"]
[EventCountry "CZE"]
[SourceTitle "playchess.com"]
[Source "ChessBase"]
[SourceQuality "1"]
[TimeControl "40/5400+30:1800+30"]

1. e4 {[%emt 0:00:27]} e5 {[%emt 0:00:02]} 2. Nf3 {[%emt 0:00:10]} Nf6 {[%emt 0:00:07]} 3. Nc3 {[%emt 0:00:15]} Bb4 {[%emt 0:00:05]} 4. Bc4 {[%emt 0:00:30]} Nc6 {[%emt 0:00:57]} 5. O-O {[%emt 0:00:47]} O-O {[%emt 0:00:34]} 6. d3 {[%emt 0:03:26]} d6 {[%emt 0:02:01]} 7. Bg5 {[%emt 0:03:05]} Bxc3 {[%emt 0:01:04]} 8. bxc3 {[%emt 0:00:12]} Be6 {[%emt 0:00:19]} 9. Bb3 {[%emt 0:01:33]} h6 {[%emt 0:04:18]} 10. Bh4 {[%emt 0:01:56]} b5 {[%emt 0:12:04]} 11. Rb1 {[%emt 0:03:19]} Rb8 {[%emt 0:02:15]} 12. Bxe6 {[%emt 0:09:02]} fxe6 {[%emt 0:00:54]} 13. d4 {[%emt 0:01:23]} Qd7 {[%emt 0:07:48]} 14. dxe5 {[%emt 0:03:04]} Nxe5 {[%emt 0:02:38]} 15. Nxe5 {[%emt 0:00:51]} dxe5 {[%emt 0:00:13]} 16. Bxf6 {[%emt 0:00:58]} Qxd1 {[%emt 0:00:16]} 17. Rfxd1 {[%emt 0:00:08]} Rxf6 {[%emt 0:01:27]} 18. Rd7 {[%emt 0:01:08]} Rf7 {[%emt 0:00:26]} 19. Rbd1 {[%emt 0:00:25]} Rxd7 {[%emt 0:02:22]} 20. Rxd7 {[%emt 0:00:07]} Rc8 {[%emt 0:01:51]} 21. Re7 {[%emt 0:00:24]} Rd8 {[%emt 0:01:09]} 22. Kf1 {[%emt 0:01:14]} Rd2 {[%emt 0:01:13]} 23. Rxc7 {[%emt 0:00:24]} Rxc2 {[%emt 0:00:43]} 24. Rxa7 {[%emt 0:00:21]} Rxc3 {[%emt 0:00:21]} 25. Rb7 {[%emt 0:00:19]} Rc5 {[%emt 0:01:03]} 26. Ke2 {[%emt 0:00:25]} Kh7 {[%emt 0:01:36]} 27. Kf3 {[%emt 0:00:51]} Kg6 {[%emt 0:00:41]} 28. g4 {[%emt 0:07:46]} Kf6 {[%emt 0:01:49]} 29. h4 {[%emt 0:04:48]} g6 {[%emt 0:01:52]} 30. Kg2 {[%emt 0:03:04]} h5 {[%emt 0:00:32]} 1-0